bitfinex-derivatives/quotes_ETHF0:USTF0_20250803
["timestamp","ask_amount","ask_price","bid_price","bid_amount"]
[1754185622016,23.90840975,3415.5,3415.4,3.6221]
[1754185622406,23.90840975,3415.5,3415.4,4.3057]
[1754185622807,22.65082061,3415.5,3415.4,4.3057]
[1754185623009,21.70482061,3415.5,3415.4,4.3057]
[1754185623201,1.05046736,3415.7,3415.6,4.2039]
[1754185623510,1.05046736,3415.8,3415.6,4.2039]
[1754185623811,21.81859769,3415.9,3415.7,2.28985]
[1754185624012,21.81859769,3415.9,3415.8,4.2039]
[1754185624513,20.244,3415.9,3415.8,4.2039]
[1754185625105,21.29082749,3415.9,3415.7,0.58565]
[1754185625309,22.98502749,3415.9,3415.8,4.2039]
[1754185625509,22.4088,3415.9,3415.8,4.2039]
[1754185625906,23.04,3415.9,3415.8,4.2039]
[1754185626103,23.04,3415.9,3415.2,3.8914]
[1754185626411,23.04,3415.9,3414.9,1.0541882]
[1754185626412,0.5887,3415.4,3415.3,3.87312]
[1754185626612,20.242,3415.5,3415.3,2.28992]
[1754185626913,20.242,3415.5,3415.4,4.2039]
[1754185627614,23.038,3415.5,3415.4,4.2039]
[1754185627803,23.038,3415.5,3414.9,1.0541882]
[1754185627804,2.796,3415.1,3414.9,1.0541882]
[1754185628011,2.51491765,3415.6,3414.9,1.0541882]
[1754185628012,26.2488,3415.0,3414.9,1.0541882]
[1754185628210,26.5035,3415.0,3414.9,1.9537882]
[1754185628606,26.2488,3415.0,3414.9,1.9537882]
[1754185628810,23.041,3415.0,3414.9,5.2580882]
[1754185629518,22.3431,3415.0,3414.9,5.2580882]
[1754185629711,20.245,3415.0,3414.9,5.2580882]
[1754185630612,1.04833261,3415.2,3415.0,0.58577]
[1754185630819,21.3468,3415.1,3415.0,4.78967]
[1754185631116,20.7156,3415.1,3415.0,0.58577]
[1754185631319,24.08933261,3415.1,3415.0,2.8849]
[1754185631509,1.04833261,3415.1,3415.0,4.2039]
[1754185631713,1.04833261,3415.3,3415.1,0.58576]
[1754185631906,21.29233261,3415.4,3415.3,2.28992]
[1754185632112,20.244,3415.4,3415.3,4.78962]
[1754185632316,1.04833261,3415.5,3415.3,4.78962]
[1754185632512,20.249,3415.4,3415.3,4.78962]
[1754185632909,21.29912357,3415.4,3415.3,4.78962]
[1754185633116,5.30726359,3415.9,3415.3,4.78962]
[1754185633117,1.57459769,3415.5,3415.3,2.28992]
[1754185633319,21.82359769,3415.6,3415.5,4.10599]
[1754185633520,21.82359769,3415.6,3415.5,4.78959]
[1754185634316,21.30227392,3415.6,3415.5,4.78959]
[1754185634515,1.05027392,3415.7,3415.5,4.78959]
[1754185634825,1.05027392,3415.7,3415.6,4.2039]
[1754185635016,21.30127392,3415.8,3415.7,0.58565]
[1754185635220,0.5887,3415.5,3415.4,2.2899]
[1754185635413,1.46808792,3415.5,3415.4,2.2899]
[1754185635614,0.87938792,3415.5,3415.4,2.2899]
[1754185635814,0.87938792,3415.5,3415.4,4.7896]
[1754185636421,0.87938792,3415.5,3415.4,0.8996]
[1754185636627,3.67538792,3415.5,3415.4,4.2039]
[1754185636826,0.87938792,3415.5,3415.4,4.2039]
[1754185637721,0.87938792,3415.5,3415.4,7.4117]
[1754185637924,0.15528792,3415.5,3415.4,7.4117]
[1754185638128,1.05027392,3415.9,3415.8,1.7042]
[1754185638327,20.258,3415.9,3415.8,4.2039]
[1754185638627,20.257,3415.9,3415.8,1.7042]
[1754185638828,20.257,3415.9,3415.4,3.2078]
[1754185639030,21.4437,3415.9,3415.8,2.28984]
[1754185639326,22.6592,3415.9,3415.7,0.58565]
[1754185639528,3.1031,3415.8,3415.7,1.19405]
[1754185639726,23.3561,3415.8,3415.7,2.11055]
[1754185640025,20.252,3415.8,3415.7,3.5203]
[1754185640229,1.9164,3416.0,3415.9,1.2438]
[1754185640426,22.637,3416.0,3415.9,4.2039]
[1754185640829,23.3531,3416.0,3415.9,4.2039]
[1754185641031,23.3531,3416.0,3415.9,4.78952]
[1754185641625,23.3531,3416.0,3415.4,3.7935]
[1754185641626,1.6891,3415.5,3415.4,3.7935]
[1754185641933,23.3511,3415.5,3415.4,4.2039]
[1754185642224,22.6532,3415.5,3415.4,4.2039]
[1754185643229,23.7611,3415.5,3415.4,0.8996]
[1754185643436,23.7611,3415.5,3414.9,1.0541882]
[1754185643437,1.414,3415.3,3414.9,1.0541882]
[1754185643730,3.5131,3415.1,3415.0,0.8996]
[1754185643921,23.3561,3415.1,3415.0,4.2039]
[1754185646626,3.1031,3415.0,3414.9,1.0541882]
[1754185646826,3.1031,3415.0,3414.9,2.5621882]
[1754185647133,3.1031,3415.0,3414.9,1.9537882]
[1754185647332,3.5131,3415.0,3414.9,1.9537882]
[1754185647738,3.1031,3415.0,3414.9,5.2580882]
[1754185648428,3.1031,3415.0,3414.9,5.8438782]
[1754185649137,3.1031,3415.0,3414.9,5.2580882]
[1754185650237,1.1867,3415.2,3415.1,4.2039]
[1754185650441,5.613,3415.4,3415.3,4.2039]
[1754185650650,25.85,3415.4,3415.3,4.2039]
[1754185651139,26.5479,3415.4,3415.3,4.2039]
[1754185652029,0.7194,3415.3,3415.0,3.2078]
[1754185652227,3.0958,3415.0,3414.9,2.2934882]
[1754185652432,23.3318,3415.0,3414.9,3.6430882]
[1754185652638,23.3318,3415.0,3414.9,4.3127882]
[1754185652831,23.3318,3415.0,3414.9,5.2433882]
[1754185654934,20.236,3415.0,3414.9,5.2433882]
[1754185655134,3.9272,3415.4,3414.9,2.7481882]
[1754185655135,3.2078,3415.4,3414.9,2.7481882]
[1754185655437,1.6875,3415.1,3415.0,2.6246]
[1754185655737,3.0958,3415.1,3415.0,2.6246]
[1754185656129,3.0958,3415.1,3415.0,4.1892]
[1754185656630,2.4069,3415.0,3414.9,1.0541882]
[1754185656838,26.9416,3415.0,3414.9,1.0541882]
[1754185658333,0.58589,3414.4,3413.8,0.9306]
[1754185658635,1.7853,3413.9,3413.8,4.1892]
[1754185658839,22.0723,3413.9,3413.8,4.1892]
[1754185659229,20.287,3413.9,3413.3,3.2078]
[1754185659434,1.1574,3413.4,3413.3,6.3112]
[1754185659632,1.8463,3413.4,3412.9,1.5646]
[1754185659839,1.1574,3413.1,3413.0,4.1892]
[1754185660139,2.4742,3413.1,3413.0,4.1892]
[1754185660739,2.4742,3413.1,3413.0,4.77532]
[1754185660934,1.7853,3413.1,3413.0,4.77532]
[1754185661236,20.305,3413.2,3413.0,4.77532]
[1754185661237,20.305,3413.2,3413.0,4.1892]
[1754185661443,5.682,3413.6,3413.5,1.694]
[1754185661644,26.018,3413.6,3413.5,4.1892]
[1754185662134,4.9931,3413.6,3413.5,4.1892]
[1754185662336,24.5991,3413.6,3413.5,4.1892]
[1754185662539,3.2078,3413.6,3413.5,4.77523]
[1754185662737,2.4742,3414.2,3414.1,0.6082]
[1754185662931,22.8152,3414.2,3414.1,0.9306]
[1754185663133,22.8152,3414.2,3414.1,1.5388]
[1754185663533,2.4742,3414.2,3414.1,1.5388]
[1754185663733,22.8142,3414.2,3414.1,1.5388]
[1754185664035,1.3168,3414.0,3413.4,0.8949]
[1754185664342,2.4742,3413.5,3413.4,0.9306]
[1754185664540,22.8382,3413.5,3413.4,4.1892]
[1754185666642,22.8392,3413.5,3413.4,4.1892]
[1754185666841,1.6772,3413.5,3413.4,4.1892]
[1754185667030,22.0332,3413.5,3413.4,4.1892]
[1754185667635,22.1413,3413.5,3413.4,4.1892]
[1754185667835,22.8302,3413.5,3413.4,4.1892]
[1754185668741,22.8302,3413.5,3413.4,3.5195]
[1754185669247,22.8302,3413.5,3413.4,2.6246]
[1754185669841,3.2078,3413.7,3413.4,4.1892]
[1754185670036,20.343,3413.6,3413.5,3.1034]
[1754185670237,20.343,3413.6,3413.5,4.1892]
[1754185671041,3.8317,3413.7,3413.5,4.1892]
[1754185671248,20.339,3413.6,3413.5,4.1892]
[1754185671635,3.8317,3413.7,3413.5,4.1892]
[1754185671839,3.8317,3413.7,3413.6,4.1892]
[1754185672038,24.609,3413.7,3413.6,4.1892]
[1754185672346,25.3205,3413.7,3413.6,4.1892]
[1754185672847,26.004,3413.7,3413.6,4.1892]
[1754185674339,1.0493,3413.4,3413.3,0.9306]
[1754185674541,22.7872,3413.4,3413.3,4.1892]
[1754185675138,22.1037,3413.4,3413.3,4.1892]
[1754185675341,22.7872,3413.4,3413.3,0.9306]
[1754185675547,22.7872,3413.4,3413.3,1.5388]
[1754185675844,22.7872,3413.4,3413.3,2.4337]
[1754185676550,4.3566,3413.7,3413.6,1.694]
[1754185676848,25.3641,3413.7,3413.6,4.1892]
[1754185677145,25.988,3413.7,3413.6,3.5195]
[1754185677345,25.988,3413.7,3413.6,4.1892]
[1754185679348,25.976,3413.7,3413.6,4.1892]
[1754185679644,5.664,3413.7,3413.6,4.1892]
[1754185680150,25.972,3413.7,3413.6,4.1892]
[1754185680447,5.664,3413.7,3413.6,4.1892]
[1754185680652,25.972,3413.7,3413.6,4.1892]
[1754185681044,25.972,3413.7,3413.6,3.5195]
[1754185681640,25.972,3413.7,3413.6,1.5388]
[1754185682246,23.5158,3413.7,3413.0,0.8862]
[1754185682438,2.3692,3413.1,3413.0,4.1438]
[1754185682639,22.6672,3413.1,3413.0,4.1438]
[1754185684249,21.9969,3413.1,3413.0,4.1438]
[1754185685644,3.2078,3413.2,3413.1,4.1438]
[1754185685852,23.5098,3413.2,3413.1,4.1438]
[1754185686648,25.879,3413.2,3413.1,4.1438]
[1754185687246,25.879,3413.2,3413.1,3.4357]
[1754185688261,26.75340413,3413.2,3413.1,3.4357]
[1754185688756,1.6989,3412.7,3412.6,4.1438]
[1754185689055,5.49279,3413.2,3413.1,2.5088]
[1754185689258,27.33767404,3413.2,3413.1,4.1438]
[1754185690052,27.33767404,3413.2,3413.1,2.6394]
[1754185690262,7.03767404,3413.2,3413.1,2.6394]
[1754185690556,27.33867404,3413.2,3413.1,1.9313]
[1754185690948,27.33867404,3413.2,3413.1,0.8862]
[1754185691152,27.38757404,3413.2,3413.1,0.8862]
[1754185691459,1.3625,3412.8,3412.7,1.3218]
[1754185691655,1.2842,3413.1,3412.7,2.3307]
[1754185691862,5.577,3413.2,3413.1,2.3307]
[1754185692056,5.577,3413.2,3413.1,4.1438]
[1754185692057,4.0820245,3413.2,3413.1,4.1438]
[1754185692260,23.4978,3413.2,3413.1,4.1438]
[1754185693153,23.4978,3413.2,3413.1,1.9313]
[1754185693154,24.59559,3413.2,3413.1,1.9313]
[1754185693366,26.45309,3413.2,3413.1,4.1438]
[1754185693547,25.867,3413.2,3413.1,4.1438]
[1754185693852,26.07100588,3413.2,3413.1,4.1438]
[1754185694061,24.36910588,3413.2,3413.1,4.1438]
[1754185694259,3.2078,3413.2,3413.1,4.1438]
[1754185694450,23.4928,3413.2,3413.1,4.1438]
[1754185698062,3.2078,3413.2,3413.1,4.1438]
[1754185698260,3.2078,3414.2,3414.1,1.6226]
[1754185698461,26.73024233,3414.2,3414.1,4.1438]
[1754185698654,6.45124233,3414.2,3414.1,4.1438]
[1754185699063,26.72924233,3414.2,3414.1,4.1438]
[1754185699273,24.35904233,3414.2,3414.1,4.1438]
[1754185699462,20.277,3414.2,3414.1,4.1438]
[1754185700560,5.577,3414.6,3414.5,3.2576]
[1754185700870,25.98111898,3414.6,3414.5,3.2576]
[1754185701170,26.72971898,3414.6,3414.5,4.1438]
[1754185701356,25.856,3414.6,3414.5,4.1438]
[1754185702267,3.2078,3414.6,3414.5,4.72966]
[1754185702675,23.4808,3414.6,3414.5,4.72966]
[1754185703183,20.273,3414.6,3414.5,4.72966]
[1754185703359,0.6139,3415.1,3414.5,4.1438]
[1754185703665,3.2078,3415.5,3415.2,4.1438]
[1754185703862,5.577,3415.5,3415.4,4.1438]
[1754185704068,26.71804579,3415.5,3415.4,4.1438]
[1754185704363,25.843,3415.5,3414.3,3.2078]
[1754185704569,1.2842,3415.0,3414.5,1.8131]
[1754185704761,20.267,3414.9,3414.8,4.1438]
[1754185706564,23.5358,3415.1,3415.0,4.1438]
[1754185706873,25.905,3415.1,3415.0,4.1438]
[1754185707078,0.6139,3415.0,3414.3,3.2078]
[1754185707365,1.085,3414.5,3414.4,3.2576]
[1754185707572,2.3692,3414.5,3414.4,3.2576]
[1754185707876,2.3692,3414.5,3414.4,4.1438]
[1754185708179,1.085,3414.5,3414.4,1.4999]
[1754185708370,1.085,3414.5,3414.4,4.1438]
[1754185708569,1.6989,3414.5,3414.4,4.1438]
[1754185709266,1.1256,3414.5,3414.4,4.1438]
[1754185709462,0.4334,3414.5,3414.4,4.1438]
[1754185709979,1.1256,3414.5,3414.4,4.1438]
[1754185710276,1.6989,3414.5,3414.4,4.1438]
[1754185711272,20.321,3414.6,3414.5,2.20846]
[1754185711472,20.321,3414.6,3414.5,2.66326]
[1754185711677,22.5747,3414.6,3414.5,2.939]
[1754185711974,22.5747,3414.6,3414.5,3.3991]
[1754185712577,1.0267,3414.3,3414.2,2.5123]
[1754185712777,2.2537,3414.3,3414.2,3.1569]
[1754185713082,1.5901,3414.3,3414.2,4.0147]
[1754185713586,1.6161,3414.3,3414.2,4.0147]
[1754185713782,2.2537,3414.3,3414.2,4.0147]
[1754185714280,1.5901,3414.3,3414.2,4.0147]
[1754185714876,22.5747,3414.6,3414.5,4.0147]
[1754185715078,21.9371,3414.6,3414.5,4.0147]
[1754185715474,22.5747,3414.6,3414.5,4.0147]
[1754185717881,22.5747,3414.6,3414.5,3.3701]
[1754185718681,22.5747,3414.6,3414.5,2.5085]
[1754185719486,22.5747,3414.6,3414.5,3.3701]
[1754185719680,22.5747,3414.6,3414.5,4.0147]
[1754185719987,2.2537,3414.6,3414.5,4.0147]
[1754185720180,22.5317,3414.6,3414.5,4.0147]
[1754185720680,2.2537,3414.6,3414.5,4.0147]
[1754185720887,22.5297,3414.6,3414.5,4.0147]
[1754185721985,22.5257,3414.6,3414.5,4.0147]
[1754185722674,1.17518,3415.0,3414.5,1.6507]
[1754185722879,22.5177,3414.9,3414.8,1.6507]
[1754185723079,22.5177,3414.9,3414.8,4.0147]
[1754185724089,22.5197,3414.9,3414.8,4.0147]
[1754185724283,2.2537,3414.9,3414.8,4.0147]
[1754185724483,22.5167,3414.9,3414.8,4.0147]
[1754185724782,23.77504753,3414.9,3414.8,4.0147]
[1754185725180,22.5167,3414.9,3414.8,4.0147]
[1754185728686,22.5167,3414.9,3414.8,3.3701]
[1754185731390,23.39164719,3414.9,3414.8,3.3701]
[1754185732392,23.39164719,3414.9,3414.8,4.0147]
[1754185735493,23.40784719,3414.9,3414.8,0.8578]
[1754185735993,23.40784719,3414.9,3414.3,0.8578]
[1754185735994,0.61186,3414.5,3414.3,0.8578]
[1754185736195,23.17364753,3414.4,3414.3,0.8578]
[1754185736493,24.0650515,3414.4,3414.3,0.8578]
[1754185736687,24.6544515,3414.4,3414.3,0.8578]
[1754185736887,24.6382515,3414.4,3414.3,1.7194]
[1754185737090,23.37990397,3414.4,3414.3,1.7194]
[1754185737290,1.0007,3413.9,3413.8,3.1569]
[1754185737495,1.0007,3413.9,3413.8,4.0147]
[1754185737496,23.73704753,3413.9,3413.8,4.0147]
[1754185738195,23.76304753,3413.9,3413.8,4.0147]
[1754185738698,23.76304753,3413.9,3413.8,3.3701]
[1754185739198,23.76304753,3413.9,3413.8,1.938]
[1754185739496,23.76304753,3413.9,3413.8,2.7996]
[1754185739794,2.83968,3413.8,3413.7,2.3395]
[1754185739993,6.04748,3413.8,3413.7,1.7194]
[1754185740193,6.04748,3413.8,3413.7,2.3395]
[1754185740397,6.04748,3413.8,3413.7,1.4779]
[1754185740598,1.46499,3413.7,3412.6,3.2078]
[1754185740894,0.5733,3412.9,3412.8,4.0147]
[1754185741092,1.1726,3413.2,3412.8,4.0147]
[1754185741290,20.8451,3413.1,3413.0,1.6507]
[1754185741491,20.8451,3413.1,3413.0,4.0147]
[1754185741686,21.2725,3413.1,3413.0,4.0147]
[1754185741888,21.8458,3413.1,3413.0,4.0147]
[1754185742089,22.4512,3413.1,3413.0,4.0147]
[1754185742697,22.4512,3413.1,3412.6,3.79398]
[1754185742698,21.8851,3413.1,3412.7,0.8592]
[1754185742898,1.558,3412.8,3412.7,2.4507]
[1754185743103,21.2719,3412.8,3412.7,2.4507]
[1754185743493,21.2719,3412.8,3412.7,3.9886]
[1754185743992,20.28,3412.8,3412.7,3.9886]
[1754185746093,22.4434,3412.8,3412.7,3.9886]
[1754185748400,0.9919,3412.4,3412.3,1.8792]
[1754185748604,22.4244,3412.4,3412.3,3.9886]
[1754185753100,3.7731,3412.6,3412.3,1.7747]
[1754185753400,0.5653,3412.8,3412.7,1.5915]
[1754185753601,20.8253,3412.8,3412.7,3.9886]
[1754185753800,0.5653,3412.8,3412.7,3.9886]
[1754185754001,20.8253,3412.8,3412.7,3.9886]
[1754185754403,0.5653,3412.8,3412.7,3.9886]
[1754185754602,20.8253,3412.8,3412.7,3.9886]
[1754185755107,0.5653,3412.8,3412.7,3.9886]
[1754185755307,21.819,3412.8,3412.7,3.9886]
[1754185755510,22.4244,3412.8,3412.7,3.9886]
[1754185756513,2.1634,3412.8,3412.7,3.9886]
[1754185756713,22.4244,3412.8,3412.7,3.9886]
[1754185757506,22.4244,3412.8,3412.7,0.8592]
[1754185758118,2.1634,3412.4,3412.3,1.4845]
[1754185758322,23.68374753,3412.4,3412.3,1.4845]
[1754185758618,23.68374753,3412.4,3412.3,2.3437]
[1754185758811,23.68374753,3412.4,3412.3,2.9152]
[1754185759422,23.68374753,3412.4,3412.3,1.4282]
[1754185760310,0.58628,3412.0,3411.9,1.05511511]
[1754185760510,24.27002753,3412.0,3411.9,1.05511511]
[1754185760705,24.27002753,3412.0,3411.9,1.91431511]
[1754185760918,24.27002753,3412.0,3411.4,3.2078]
[1754185760919,0.58637,3411.6,3411.4,3.2078]
[1754185761117,23.68474753,3411.5,3411.4,1.4282]
[1754185761419,23.68474753,3411.5,3411.4,2.3437]
[1754185761610,23.68474753,3411.5,3411.4,3.3662]
[1754185761812,23.68474753,3411.5,3411.4,3.9886]
[1754185762011,23.68474753,3411.5,3411.4,0.8592]
[1754185762218,23.68474753,3411.5,3411.4,2.3437]
[1754185762713,1.4601,3411.1,3411.0,3.0731]
[1754185762911,21.7231,3411.1,3411.0,3.0731]
[1754185763617,0.5661,3411.2,3411.1,3.0731]
[1754185763814,21.7261,3411.2,3411.1,3.0731]
[1754185764115,0.5661,3411.2,3411.1,3.0731]
[1754185764418,21.7421,3411.2,3411.1,3.0731]
[1754185764721,21.7421,3411.2,3411.1,3.9886]
[1754185765516,21.7421,3411.2,3411.1,2.5016]
[1754185765818,21.7421,3411.2,3411.1,3.9886]
[1754185766014,21.7421,3411.2,3410.5,3.2078]
[1754185766321,0.5661,3411.1,3411.0,2.4507]
[1754185766616,20.282,3411.2,3411.0,1.5915]
[1754185766816,20.282,3411.2,3411.1,3.9886]
[1754185767319,21.7421,3411.2,3411.1,3.9886]
[1754185768935,45.4148,3412.1,3411.6,3.0731]
[1754185769214,45.4148,3412.1,3411.1,1.25834753]
[1754185769215,47.56714753,3412.1,3412.0,3.9886]
[1754185769418,67.85914753,3412.1,3412.0,3.9886]
[1754185770917,1.4601,3411.8,3411.7,0.8592]
[1754185771115,23.01244753,3411.8,3411.7,0.8592]
[1754185771423,23.01244753,3411.8,3411.7,2.5016]
[1754185771728,23.01244753,3411.8,3411.7,3.9429]
[1754185771927,21.7541,3411.8,3411.7,3.9429]
[1754185772113,20.8601,3411.8,3411.7,3.9429]
[1754185772925,21.55234753,3411.8,3411.0,1.7187]
[1754185773226,23.02754753,3411.8,3411.7,3.9279]
[1754185774024,23.02754753,3411.8,3411.7,3.0581]
[1754185774226,23.02754753,3411.8,3411.7,0.8489]
[1754185774423,23.8991391,3411.8,3411.7,0.8489]
[1754185774725,23.8991391,3411.8,3410.9,3.2078]
[1754185774726,23.3187391,3411.8,3411.0,0.8489]
[1754185774918,4.37457,3411.5,3411.4,1.5595]
[1754185775120,26.82871753,3411.5,3411.4,3.9279]
[1754185775327,0.58643,3411.2,3410.9,3.2078]
[1754185775523,1.83874753,3411.2,3411.1,2.4084]
[1754185775824,22.15474753,3411.2,3411.1,3.9279]
[1754185776026,23.04954753,3411.2,3411.1,3.9279]
[1754185776514,23.9218349,3411.2,3411.1,3.9279]
[1754185778727,22.66348737,3411.2,3411.1,3.9279]
[1754185780031,22.66348737,3411.2,3411.1,0.8489]
[1754185780427,0.58644,3411.1,3410.2,0.58658]
[1754185780628,2.73354753,3410.4,3410.3,3.2782]
[1754185780829,21.7732,3410.4,3410.3,3.9279]
[1754185781024,20.8784,3410.4,3410.3,3.9279]
[1754185781525,2.15314753,3410.7,3410.3,4.51447]
[1754185781728,3.2078,3411.0,3410.9,3.0581]
[1754185781930,24.37874734,3411.0,3410.9,3.9279]
[1754185782226,25.85894734,3411.0,3410.9,3.9279]
[1754185782426,25.85894734,3411.0,3410.4,0.8489]
[1754185782427,1.4752,3410.5,3410.4,0.8489]
[1754185782632,23.03754753,3410.5,3410.4,0.8489]
[1754185783019,23.03754753,3410.5,3410.4,1.4326]
[1754185783223,23.03754753,3410.5,3410.4,3.9279]
[1754185784133,23.03754753,3410.5,3410.4,1.8463]
[1754185785720,3.2078,3410.6,3410.4,3.9279]
[1754185785926,3.2078,3410.6,3410.5,3.9279]
[1754185786236,24.99,3410.6,3410.5,3.9279]
[1754185786428,25.86223397,3410.6,3410.5,3.9279]
[1754185787832,25.86223397,3410.6,3410.5,0.8489]
[1754185788337,24.96743397,3410.6,3410.5,3.9279]
[1754185789935,25.86223397,3410.6,3410.5,3.9279]
[1754185790830,25.86223397,3410.6,3410.5,0.8489]
[1754185791027,1.4752,3410.3,3410.2,1.4326]
[1754185791227,23.9017815,3410.3,3410.2,1.4326]
[1754185791427,23.02954753,3410.3,3410.2,1.4326]
[1754185791628,23.90235928,3410.3,3410.2,1.4326]
[1754185792030,23.90235928,3410.3,3410.2,0.8489]
[1754185792233,1.4752,3409.9,3409.8,3.079]
[1754185792436,23.03454753,3409.9,3409.8,3.079]
[1754185792738,23.03454753,3409.9,3409.8,3.9279]
[1754185793332,23.03454753,3409.9,3409.8,3.2782]
[1754185793532,23.03454753,3409.9,3409.3,3.2078]
[1754185793533,22.13974753,3409.9,3409.5,0.8489]
[1754185793736,2.73354753,3409.6,3409.5,0.8489]
[1754185793929,23.03154753,3409.6,3409.5,1.8463]
[1754185794130,23.03154753,3409.6,3409.5,3.9279]
[1754185794442,20.298,3409.6,3409.5,3.9279]
[1754185794938,21.7732,3409.6,3409.5,3.9279]
[1754185795336,21.7732,3409.6,3409.3,4.0567]
[1754185795634,2.73354753,3409.4,3409.3,3.2078]
[1754185795938,23.03354753,3409.4,3409.3,6.2868]
[1754185796240,23.03354753,3409.4,3409.3,7.1357]
[1754185796441,23.03354753,3409.4,3409.3,3.9279]
[1754185796632,23.03354753,3409.4,3409.3,2.4084]
[1754185796834,22.13874753,3409.4,3409.3,3.9279]
[1754185797033,22.13874753,3409.4,3408.9,1.05604365]
[1754185797034,4.683,3409.6,3409.5,1.5595]
[1754185797340,24.989,3409.6,3409.5,3.0581]
[1754185797545,26.24734753,3409.6,3409.5,3.0581]
[1754185797926,21.7812,3409.6,3409.5,3.9279]
[1754185798130,20.8864,3409.6,3409.5,3.9279]
[1754185798333,0.5804,3409.6,3409.5,3.9279]
[1754185798533,20.304,3409.6,3409.5,1.5595]
[1754185799043,20.304,3409.6,3409.2,0.58675]
[1754185799044,3.2078,3410.0,3409.8,3.9279]
[1754185799238,20.304,3409.9,3409.8,3.9279]
[1754185799431,21.55834753,3409.9,3409.8,0.8489]
[1754185799640,23.03354753,3409.9,3409.8,3.9279]
[1754185800043,23.03354753,3409.9,3409.8,2.4084]
[1754185800235,23.03354753,3409.9,3409.8,0.8489]
[1754185800434,23.03354753,3409.9,3409.8,3.9279]
[1754185800942,1.4752,3409.8,3409.7,0.9974]
[1754185801133,1.4752,3409.8,3409.7,3.9279]
[1754185801440,1.25834753,3409.9,3409.7,3.9279]
[1754185801835,20.311,3409.8,3409.7,3.9585]
[1754185802939,1.25834753,3409.9,3409.7,3.9585]
[1754185803144,4.6916,3410.0,3409.9,3.8962]
[1754185803442,24.9986,3410.0,3409.9,3.8962]
[1754185803839,24.9986,3410.0,3408.9,2.52307365]
[1754185803840,0.8856,3409.9,3409.8,0.9458]
[1754185804146,1.4838,3409.9,3409.8,2.3812]
[1754185804345,1.4838,3409.9,3409.8,3.8962]
[1754185805144,23.5148,3410.0,3408.9,1.05604365]
[1754185805145,3.2078,3410.0,3409.9,4.48285]
[1754185805351,23.5228,3410.0,3409.9,3.8962]
[1754185805540,3.2078,3410.0,3409.9,3.8962]
[1754185805740,3.2078,3410.4,3410.3,3.8962]
[1754185805941,26.25359335,3410.4,3410.3,3.8962]
[1754185806636,26.25659335,3410.4,3410.3,3.8962]
[1754185807848,22.67004582,3410.4,3410.3,3.8962]
[1754185808446,21.7968,3410.4,3410.3,3.8962]
[1754185809948,42.231,3410.8,3410.7,3.8962]
[1754185810137,0.23129789,3411.1,3411.0,0.58646]
[1754185810340,2.53407392,3411.9,3411.8,3.8962]
[1754185810540,27.48890947,3411.9,3411.8,2.3812]
[1754185810838,2.52256194,3411.9,3411.8,3.8962]
[1754185811145,0.87408802,3411.9,3411.8,3.8962]
[1754185811546,23.5518,3412.0,3411.8,1.4972]
[1754185811750,3.2078,3412.0,3411.9,3.8962]
[1754185812245,23.5478,3412.0,3411.9,3.8962]
[1754185812947,24.146,3412.0,3411.9,3.8962]
[1754185813343,20.34,3412.0,3411.9,3.8962]
[1754185814850,20.34,3412.0,3411.9,2.9974]
[1754185815057,24.3042,3412.0,3411.9,1.8298]
[1754185815245,24.3042,3412.0,3411.7,0.884]
[1754185815557,3.9642,3411.9,3411.8,0.884]
[1754185817248,3.9642,3411.9,3411.8,1.8298]
[1754185817753,4.5505,3411.9,3411.8,1.8298]
[1754185818255,3.9642,3411.9,3411.8,1.8298]
[1754185818955,3.9642,3411.2,3411.1,0.884]
[1754185819163,24.2942,3411.2,3411.1,1.8298]
[1754185819464,2.15954,3411.1,3411.0,3.2078]
[1754185819648,3.9642,3411.0,3410.9,1.4244]
[1754185819956,3.4059698,3411.4,3410.9,2.08367]
[1754185820153,3.2078,3411.5,3411.4,3.8962]
[1754185820452,23.5398,3411.5,3411.4,3.8962]
[1754185820758,25.0236,3411.5,3411.4,3.8962]
[1754185821458,3.2078,3411.5,3411.4,3.8962]
[1754185826751,20.336,3411.6,3411.5,0.58637]
[1754185827059,20.336,3411.6,3411.5,4.48257]
[1754185827957,1.6485,3412.0,3411.9,1.4972]
[1754185828155,22.5527,3412.0,3411.9,3.8962]
[1754185828349,23.4383,3412.0,3411.9,3.8962]
[1754185828955,3.0786,3412.1,3412.0,2.3812]
[1754185829164,24.2692,3412.1,3412.0,2.3812]
[1754185829351,24.2692,3412.1,3412.0,2.9974]
[1754185829659,23.4373,3412.1,3412.0,3.8962]
[1754185830462,20.305,3412.1,3412.0,3.8962]
[1754185830763,20.9022,3412.1,3412.0,1.4972]
[1754185830949,21.7878,3412.1,3412.0,3.8962]
[1754185831356,20.9022,3412.1,3412.0,3.8962]
[1754185831558,22.7385,3412.1,3412.0,3.8962]
[1754185831758,23.4047,3412.1,3412.0,3.8962]
[1754185832164,42.241,3412.3,3412.2,3.8719]
[1754185832357,20.293,3412.3,3412.2,2.393]
[1754185832556,20.8726,3412.3,3412.2,3.8719]
[1754185833862,5.4977,3412.6,3412.5,3.8719]
[1754185834065,25.7857,3412.6,3412.5,3.8719]
[1754185834364,26.6471,3412.6,3412.5,3.8719]
[1754185834762,27.90711967,3412.6,3412.5,3.8719]
[1754185835065,26.6461,3412.6,3412.5,2.3687]
[1754185835255,26.6461,3412.6,3412.5,3.8719]
[1754185835452,3.2078,3412.6,3412.5,3.8719]
[1754185835756,23.4928,3412.6,3412.5,3.8719]
[1754185836169,24.0724,3412.6,3412.5,3.8719]
[1754185836468,24.9338,3412.6,3412.5,3.8719]